lending/lending_fUSD_20251116
["ID","MTS","AMOUNT","RATE_DAILY","PERIOD"]
[394098843,1763279432413,-25844.85882673,0.00016986,2]
[394099007,1763279438418,-3357.83562371,0.00016986,2]
[394099008,1763279438430,-1360.25058712,0.00016986,2]
[394099009,1763279438446,-2082.2513192,0.00016986,2]
[394099010,1763279438458,-374.12,0.00016986,2]
[394099011,1763279439971,-461.74063945,0.00016986,2]
[394099012,1763279439983,-526.18081194,0.00016986,2]
[394099013,1763279440024,-1557.38467929,0.00016986,2]
[394099014,1763279440035,-52131.02751256,0.00016986,2]
[394099015,1763279440045,-250.0,0.00017,2]
[394099016,1763279440055,-151.0,0.00017027,2]
[394099017,1763279440065,-322.6107,0.00017027,2]
[394099018,1763279440074,-151.0,0.00017027,2]
[394099019,1763279440083,-151.0,0.00017027,2]
[394099020,1763279440092,-151.0,0.00017027,2]
[394099021,1763279440101,-151.0,0.00017027,2]
[394099022,1763279440111,-250.0,0.00017027,2]
[394099023,1763279440120,-151.0,0.00017027,2]
[394099024,1763279440130,-250.0,0.00017027,2]
[394099025,1763279440142,-151.0,0.00017027,2]
[394099026,1763279440152,-250.0,0.00017027,2]
[394099027,1763279440162,-250.0,0.00017027,2]
[394099028,1763279440171,-250.0,0.00017027,2]
[394099029,1763279440180,-151.0,0.00017027,2]
[394099030,1763279440191,-250.0,0.00017027,2]
[394099031,1763279440200,-250.0,0.00017027,2]
[394099032,1763279440209,-151.0,0.00017027,2]
[394099033,1763279440219,-250.0,0.00017027,2]
[394099034,1763279440228,-151.0,0.00017027,2]
[394099035,1763279440237,-250.0,0.00017027,2]
[394099036,1763279440247,-250.0,0.00017027,2]
[394099037,1763279440256,-151.0,0.00017027,2]
[394099038,1763279440265,-250.0,0.00017027,2]
[394099039,1763279440274,-250.0,0.00017027,2]
[394099040,1763279440283,-151.0,0.00017027,2]
[394099041,1763279440292,-250.0,0.00017027,2]
[394099042,1763279440302,-250.0,0.00017027,2]
[394099043,1763279440312,-169.04537978,0.00017027,2]
[394099044,1763279440321,-250.0,0.00017027,2]
[394099045,1763279440330,-250.0,0.00017027,2]
[394099046,1763279440339,-250.0,0.00017027,2]
[394099047,1763279440348,-250.0,0.00017027,2]
[394099048,1763279440357,-250.0,0.00017027,2]
[394099049,1763279440367,-314.97225511,0.00017027,2]
[394099050,1763279440377,-250.0,0.00017027,2]
[394099051,1763279440386,-500.0,0.00017027,2]
[394099052,1763279440396,-250.0,0.00017027,2]
[394099053,1763279440404,-500.0,0.00017027,2]
[394099054,1763279440413,-250.0,0.00017027,2]
[394099055,1763279440423,-500.0,0.00017027,2]
[394099056,1763279440432,-250.0,0.00017027,2]
[394099057,1763279440442,-591.23609277,0.00017027,2]
[394099058,1763279440451,-250.0,0.00017027,2]
[394099059,1763279440460,-250.0,0.00017027,2]
[394099060,1763279440469,-250.0,0.00017027,2]
[394099061,1763279440478,-250.0,0.00017027,2]
[394099062,1763279440488,-574.12855637,0.00017027,2]
[394099063,1763279440497,-250.0,0.00017027,2]
[394099064,1763279440506,-151.0,0.00017027,2]
[394099065,1763279440516,-151.0,0.00017027,2]
[394099066,1763279440525,-250.0,0.00017027,2]
[394099067,1763279440535,-250.0,0.00017027,2]
[394099068,1763279440544,-250.0,0.00017027,2]
[394099069,1763279440553,-250.0,0.00017027,2]
[394099070,1763279440562,-250.0,0.00017027,2]
[394099071,1763279440571,-250.0,0.00017027,2]
[394099072,1763279440581,-250.0,0.00017027,2]
[394099073,1763279440590,-250.0,0.00017027,2]
[394099074,1763279440599,-250.0,0.00017027,2]
[394099075,1763279440608,-277.35679052,0.00017027,2]
[394099076,1763279440618,-8050.48271838,0.00017149,2]
[394099077,1763279440627,-150.0,0.00017214,2]
[394099078,1763279440636,-12717.3720816,0.00017228,2]
[394099079,1763279440645,-166.66,0.00017249,2]
[394099080,1763279440655,-300.0,0.00017478,2]
[394099081,1763279440664,-300.0,0.00017478,2]
[394099082,1763279440673,-300.0,0.00017478,2]
[394099083,1763279440682,-300.0,0.00017478,2]
[394099084,1763279440692,-300.0,0.00017478,2]
[394099085,1763279440702,-300.0,0.00017478,2]
[394099086,1763279440711,-195.0,0.00017478,2]
[394099087,1763279440720,-250.0,0.00017478,2]
[394099088,1763279440729,-301.22670242,0.00017478,2]
[394099089,1763279440739,-504.36442278,0.00017521,2]
[394099090,1763279440748,-501.27954765,0.00017521,2]
[394099092,1763279440757,-320.56,0.00017523,2]
[394099093,1763279440766,-168.0,0.00017549,2]
[394099094,1763279440776,-595.37131296,0.00017575,2]
[394099095,1763279440792,-151.0,0.00017575,2]
[394099096,1763279440801,-166.66,0.00017584,2]
[394099097,1763279440811,-1000.0,0.0001766,2]
[394099098,1763279440821,-300.0,0.00017691,2]
[394099099,1763279440830,-168.0,0.00017691,2]
[394099100,1763279440840,-1000.0,0.00017692,2]
[394099101,1763279440849,-300.0,0.00017694,2]
[394099102,1763279440859,-300.0,0.000177,2]
[394099103,1763279440868,-300.0,0.00017702,2]
[394099104,1763279440877,-300.0,0.00017706,2]
[394099105,1763279440887,-300.0,0.00017708,2]
[394099106,1763279440896,-300.0,0.00017709,2]
[394099107,1763279440906,-300.0,0.0001772,2]
[394099108,1763279440915,-300.0,0.00017723,2]
[394099109,1763279440925,-300.0,0.0001773,2]
[394099110,1763279440934,-209.51434298,0.00017731,2]
[394099111,1763279440944,-300.0,0.00017733,2]
[394099112,1763279440954,-300.0,0.00017741,2]
[394099113,1763279440963,-164.18539368,0.00017742,2]
[394099114,1763279440973,-300.0,0.00017744,2]
[394099115,1763279440983,-300.0,0.00017749,2]
[394099116,1763279440993,-300.0,0.00017749,2]
[394099117,1763279441003,-300.0,0.00017749,2]
[394099118,1763279441013,-300.0,0.00017753,2]
[394099119,1763279441023,-300.0,0.00017755,2]
[394099120,1763279441033,-300.0,0.00017755,2]
[394099121,1763279441043,-300.0,0.00017758,2]
[394099122,1763279441053,-300.0,0.00017762,2]
[394099123,1763279441062,-300.0,0.00017767,2]
[394099124,1763279441073,-219.46254807,0.00017769,2]
[394099125,1763279441083,-500.0,0.00017769,2]
[394099126,1763279441094,-207.26383671,0.00017769,2]
[394099127,1763279441103,-179.37891892,0.00017769,2]
[394099128,1763279441113,-300.0,0.0001777,2]
[394099129,1763279441123,-300.0,0.00017771,2]
[394099130,1763279441132,-300.0,0.00017771,2]
[394099131,1763279441146,-300.0,0.00017773,2]
[394099132,1763279441156,-150.0,0.00017773,2]
[394099133,1763279441165,-300.0,0.00017778,2]
[394099134,1763279441175,-300.0,0.0001778,2]
[394099135,1763279441185,-300.0,0.00017785,2]
[394099136,1763279441195,-300.0,0.00017789,2]
[394099137,1763279441204,-300.0,0.00017791,2]
[394099138,1763279441213,-300.0,0.00017793,2]
[394099139,1763279441223,-300.0,0.00017799,2]
[394099140,1763279441233,-2000.0,0.000178,2]
[394099141,1763279441242,-300.0,0.00017801,2]
[394099142,1763279441251,-300.0,0.00017806,2]
[394099143,1763279441261,-199.511,0.00017807,2]
[394099144,1763279441270,-1000.0,0.00017807,2]
[394099145,1763279441280,-1000.0,0.00017807,2]
[394099146,1763279441289,-433.022,0.00017807,2]
[394099147,1763279441298,-300.0,0.00017811,2]
[394099148,1763279441307,-150.0,0.00017813,2]
[394099149,1763279441316,-300.0,0.00017814,2]
[394099150,1763279441327,-420.0,0.00017815,2]
[394099151,1763279441336,-300.0,0.00017819,2]
[394099152,1763279441346,-300.0,0.00017823,2]
[394099153,1763279441355,-300.0,0.00017824,2]
[394099154,1763279441364,-300.0,0.00017828,2]
[394099155,1763279441374,-300.0,0.00017829,2]
[394099156,1763279441383,-300.0,0.00017833,2]
[394099157,1763279441393,-195.0,0.00017834,2]
[394099158,1763279441402,-300.0,0.00017835,2]
[394099159,1763279441412,-300.0,0.00017842,2]
[394099160,1763279441421,-300.0,0.00017844,2]
[394099161,1763279441431,-300.0,0.00017846,2]
[394099162,1763279441442,-300.0,0.00017849,2]
[394099163,1763279441462,-1000.0,0.0001785,2]
[394099164,1763279441472,-300.0,0.00017854,2]
[394099165,1763279441481,-150.0,0.00017854,2]
[394099166,1763279441490,-200.0,0.00017856,2]
[394099167,1763279441500,-200.90410886,0.00017859,2]
[394099168,1763279441509,-300.0,0.00017867,2]
[394099169,1763279441519,-300.0,0.00017868,2]
[394099170,1763279441528,-300.0,0.0001787,2]
[394099171,1763279441538,-300.0,0.00017875,2]
[394099172,1763279441547,-300.0,0.00017877,2]
[394099173,1763279441557,-300.0,0.00017886,2]
[394099174,1763279441566,-300.0,0.00017887,2]
[394099175,1763279441576,-300.0,0.00017889,2]
[394099176,1763279441585,-300.0,0.00017889,2]
[394099177,1763279441595,-300.0,0.0001789,2]
[394099178,1763279441605,-300.0,0.00017891,2]
[394099179,1763279441614,-300.0,0.00017893,2]
[394099180,1763279441624,-300.0,0.00017895,2]
[394099181,1763279441634,-270.42506253,0.00017897,2]
[394099182,1763279441643,-193.29686919,0.00017897,2]
[394099183,1763279441652,-869.96872955,0.000179,2]
[394099184,1763279441662,-300.0,0.000179,2]
[394099185,1763279441672,-1680.0,0.00017904,2]
[394099186,1763279441682,-1000.0,0.00017911,2]
[394099187,1763279441693,-300.0,0.00017917,2]
[394099188,1763279441702,-2415.0,0.00017918,2]
[394099189,1763279441711,-300.0,0.00017921,2]
[394099190,1763279441721,-300.0,0.00017924,2]
[394099191,1763279441730,-300.0,0.00017924,2]
[394099192,1763279441740,-300.0,0.00017929,2]
[394099193,1763279441750,-300.0,0.00017931,2]
[394099194,1763279441759,-150.0,0.00017931,2]
[394099195,1763279441768,-300.0,0.00017932,2]
[394099196,1763279441778,-300.0,0.00017933,2]
[394099197,1763279441788,-150.0,0.00017937,2]
[394099198,1763279441798,-300.0,0.00017937,2]
[394099199,1763279441807,-168.0,0.00017941,2]
[394099200,1763279441817,-300.0,0.00017943,2]
[394099201,1763279441828,-300.0,0.00017944,2]
[394099202,1763279441841,-300.0,0.00017944,2]
[394099203,1763279441851,-300.0,0.00017944,2]
[394099204,1763279441860,-300.0,0.0001795,2]
[394099205,1763279441870,-300.0,0.00017951,2]
[394099206,1763279441879,-300.0,0.00017954,2]
[394099207,1763279441888,-1000.0,0.00017954,2]
[394099208,1763279441898,-300.0,0.0001796,2]
[394099209,1763279441907,-300.0,0.0001796,2]
[394099210,1763279441917,-300.0,0.00017965,2]
[394099211,1763279441927,-300.0,0.00017972,2]
[394099212,1763279441937,-337.06854993,0.00017973,2]
[394099213,1763279441947,-500.0,0.00017982,2]
[394099214,1763279441956,-888.79830231,0.00017982,2]
[394099215,1763279441966,-208.24,0.00017989,2]
[394099216,1763279441976,-873.78870874,0.0001799,2]
[394099217,1763279441986,-300.0,0.00017996,2]
[394099218,1763279441998,-184128.3649579,0.00017997,2]
[394099219,1763279442007,-11834.4391177,0.00017997,2]
[394099220,1763279442017,-466427.9021155,0.00017997,2]
[394099221,1763279442027,-1920.3979982,0.00017997,2]
[394099222,1763279442037,-151.0,0.00017997,2]
[394099223,1763279442047,-151.0,0.00017997,2]
[394099224,1763279442056,-214.412412,0.00017997,2]
[394099225,1763279442066,-151.0,0.00017997,2]
[394099226,1763279442080,-151.0,0.00017997,2]
[394099227,1763279442091,-161.513378,0.00017997,2]
[394099228,1763279442100,-151.0,0.00017997,2]
[394099229,1763279442110,-151.972917,0.00017997,2]
[394099230,1763279442119,-160.745587,0.00017997,2]
[394099231,1763279442129,-151.0,0.00017997,2]
[394099232,1763279442141,-151.0,0.00017997,2]
[394099233,1763279442153,-158.378135,0.00017997,2]
[394099234,1763279442163,-151.0,0.00017997,2]
[394099235,1763279442173,-151.0,0.00017997,2]
[394099236,1763279442184,-151.0,0.00017997,2]
[394099237,1763279442194,-151.0,0.00017997,2]
[394099238,1763279442204,-153.818967,0.00017997,2]
[394099239,1763279442214,-151.0,0.00017997,2]
[394099240,1763279442223,-151.0,0.00017997,2]
[394099241,1763279442234,-151.0,0.00017997,2]
[394099242,1763279442243,-151.0,0.00017997,2]
[394099243,1763279442253,-151.0,0.00017997,2]
[394099244,1763279442263,-151.0,0.00017997,2]
[394099245,1763279442273,-151.0,0.00017997,2]
[394099246,1763279442283,-156.089534,0.00017997,2]
[394099247,1763279442292,-151.0,0.00017997,2]
[394099248,1763279442302,-151.0,0.00017997,2]
[394099249,1763279442312,-158.371195,0.00017997,2]
[394099250,1763279442322,-151.0,0.00017997,2]
[394099251,1763279442331,-157.581908,0.00017997,2]
[394099252,1763279442341,-153.714524,0.00017997,2]
[394099253,1763279442351,-151.0,0.00017997,2]
[394099254,1763279442360,-151.0,0.00017997,2]
[394099255,1763279442370,-151.0,0.00017997,2]
[394099256,1763279442379,-151.0,0.00017997,2]
[394099257,1763279442393,-161.211889,0.00017997,2]
[394099258,1763279442403,-151.0,0.00017997,2]
[394099259,1763279442412,-151.0,0.00017997,2]
[394099260,1763279442422,-151.0,0.00017997,2]
[394099261,1763279442431,-151.0,0.00017997,2]
[394099262,1763279442441,-151.0,0.00017997,2]
[394099263,1763279442451,-151.0,0.00017997,2]
[394099264,1763279442460,-155.471458,0.00017997,2]
[394099265,1763279442470,-151.0,0.00017997,2]
[394099266,1763279442479,-151.0,0.00017997,2]
[394099267,1763279442488,-183.398054,0.00017997,2]
[394099268,1763279442498,-152.793394,0.00017997,2]
[394099269,1763279442507,-151.0,0.00017997,2]
[394099270,1763279442517,-307.712402,0.00017997,2]
[394099271,1763279442527,-151.0,0.00017997,2]
[394099272,1763279442536,-307.712402,0.00017997,2]
[394099273,1763279442546,-307.712402,0.00017997,2]
[394099274,1763279442556,-307.712402,0.00017997,2]
[394099275,1763279442565,-213.900215,0.00017997,2]
[394099276,1763279442575,-151.0,0.00017997,2]
[394099277,1763279442588,-213.900215,0.00017997,2]
[394099278,1763279442597,-151.0,0.00017997,2]
[394099279,1763279442607,-213.900215,0.00017997,2]
[394099280,1763279442616,-151.0,0.00017997,2]
[394099281,1763279442626,-151.0,0.00017997,2]
[394099282,1763279442635,-118086.1438982,0.00017997,2]
[394099283,1763279442646,-213.900215,0.00017997,2]
[394099285,1763279442655,-151.0,0.00017997,2]
[394099286,1763279442859,-151.0,0.00017997,2]
[394099288,1763279442869,-151.0,0.00017997,2]
[394099290,1763279442879,-151.0,0.00017997,2]
[394099292,1763279442888,-165.104213,0.00017997,2]
[394099294,1763279442898,-329.406227,0.00017997,2]
[394099295,1763279442907,-329.406227,0.00017997,2]
[394099296,1763279442920,-151.0,0.00017997,2]
[394099297,1763279442929,-193.063553,0.00017997,2]
[394099298,1763279442939,-329.406227,0.00017997,2]
[394099299,1763279442948,-329.406227,0.00017997,2]
[394099300,1763279442957,-151.0,0.00017997,2]
[394099301,1763279442967,-174.145706,0.00017997,2]
[394099302,1763279442976,-329.406227,0.00017997,2]
[394099303,1763279442986,-329.406227,0.00017997,2]
[394099305,1763279442995,-329.406227,0.00017997,2]
[394099306,1763279443004,-329.406227,0.00017997,2]
[394099308,1763279443014,-154.259977,0.00017997,2]
[394099310,1763279443023,-151.0,0.00017997,2]
[394099312,1763279443032,-170.456547,0.00017997,2]
[394099314,1763279443042,-151.0,0.00017997,2]
[394099315,1763279443053,-151.0,0.00017997,2]
[394099316,1763279443066,-151.0,0.00017997,2]
[394099317,1763279443076,-151.0,0.00017997,2]
[394099318,1763279443084,-151.0,0.00017997,2]
[394099319,1763279443094,-151.0,0.00017997,2]
[394099320,1763279443103,-151.0,0.00017997,2]
[394099322,1763279443112,-151.0,0.00017997,2]
[394099324,1763279443124,-151.0,0.00017997,2]
[394099325,1763279443133,-151.0,0.00017997,2]
[394099326,1763279443146,-151.0,0.00017997,2]
[394099327,1763279443155,-151.0,0.00017997,2]
[394099328,1763279443164,-151.0,0.00017997,2]
[394099329,1763279443174,-151.0,0.00017997,2]
[394099330,1763279443183,-151.0,0.00017997,2]
[394099331,1763279443192,-151.0,0.00017997,2]
[394099332,1763279443202,-225.032242,0.00017997,2]
[394099333,1763279443211,-151.0,0.00017997,2]
[394099334,1763279443220,-151.0,0.00017997,2]
[394099335,1763279443230,-151.0,0.00017997,2]
[394099336,1763279443239,-151.0,0.00017997,2]
[394099337,1763279443248,-218.123202,0.00017997,2]
[394099338,1763279443257,-151.0,0.00017997,2]
[394099339,1763279443266,-151.0,0.00017997,2]
[394099340,1763279443276,-151.0,0.00017997,2]
[394099341,1763279443286,-151.0,0.00017997,2]
[394099342,1763279443295,-151.0,0.00017997,2]
[394099343,1763279443304,-151.0,0.00017997,2]
[394099344,1763279443313,-151.0,0.00017997,2]
[394099345,1763279443323,-240.358672,0.00017997,2]
[394099346,1763279443332,-151.0,0.00017997,2]
[394099347,1763279443341,-151.0,0.00017997,2]
[394099348,1763279443350,-151.0,0.00017997,2]
[394099349,1763279443359,-151.0,0.00017997,2]
[394099350,1763279443368,-151.0,0.00017997,2]
[394099351,1763279443377,-256.091231,0.00017997,2]
[394099352,1763279443386,-256.091231,0.00017997,2]
[394099353,1763279443395,-256.091231,0.00017997,2]
[394099354,1763279443405,-256.091231,0.00017997,2]
[394099355,1763279443414,-256.091231,0.00017997,2]
[394099356,1763279443423,-151.0,0.00017997,2]
[394099357,1763279443432,-151.0,0.00017997,2]
[394099359,1763279443442,-256.091231,0.00017997,2]
[394099361,1763279443451,-151.0,0.00017997,2]
[394099363,1763279443460,-151.0,0.00017997,2]
[394099365,1763279443470,-151.0,0.00017997,2]
[394099367,1763279443479,-151.0,0.00017997,2]
[394099369,1763279443487,-256.091231,0.00017997,2]
[394099371,1763279443497,-256.091231,0.00017997,2]
[394099373,1763279443506,-151.0,0.00017997,2]
[394099376,1763279443526,-151.0,0.00017997,2]
[394099378,1763279443536,-256.091231,0.00017997,2]
[394099380,1763279443545,-152.971918,0.00017997,2]
[394099382,1763279443555,-256.091231,0.00017997,2]
[394099384,1763279443564,-256.091231,0.00017997,2]
[394099386,1763279443574,-151.0,0.00017997,2]
[394099388,1763279443583,-151.0,0.00017997,2]
[394099390,1763279443592,-256.091231,0.00017997,2]
[394099392,1763279443602,-151.0,0.00017997,2]
[394099394,1763279443612,-165.666462,0.00017997,2]
[394099396,1763279443622,-151.0,0.00017997,2]
[394099398,1763279443632,-227.374883,0.00017997,2]
[394099400,1763279443642,-151.0,0.00017997,2]
[394099402,1763279443651,-151.0,0.00017997,2]
[394099403,1763279443661,-157.206441,0.00017997,2]
[394099404,1763279443671,-754.641947,0.00017997,2]
[394099405,1763279443680,-754.641947,0.00017997,2]
[394099406,1763279443690,-754.641947,0.00017997,2]
[394099407,1763279443700,-754.641947,0.00017997,2]
[394099408,1763279443710,-754.641947,0.00017997,2]
[394099409,1763279443719,-754.641947,0.00017997,2]
[394099410,1763279443729,-754.641947,0.00017997,2]
[394099411,1763279443738,-754.641947,0.00017997,2]
[394099412,1763279443746,-754.641947,0.00017997,2]
[394099413,1763279443754,-754.641947,0.00017997,2]
[394099414,1763279443763,-754.641947,0.00017997,2]
[394099415,1763279443771,-754.641947,0.00017997,2]
[394099416,1763279443780,-151.0,0.00017997,2]
[394099417,1763279443788,-7598.5180669,0.00017997,2]
[394099418,1763279443797,-159.242683,0.00017997,2]
[394099419,1763279443806,-151.0,0.00017997,2]
[394099420,1763279443815,-151.0,0.00017997,2]
[394099421,1763279443824,-161.206197,0.00017997,2]
[394099422,1763279443832,-163.149315,0.00017997,2]
[394099423,1763279443841,-163.149315,0.00017997,2]
[394099424,1763279443850,-163.149315,0.00017997,2]
[394099425,1763279443859,-151.811139,0.00017997,2]
[394099426,1763279443867,-163.149315,0.00017997,2]
[394099427,1763279443877,-163.149315,0.00017997,2]
[394099428,1763279443887,-163.149315,0.00017997,2]
[394099429,1763279443895,-151.0,0.00017997,2]
[394099430,1763279443904,-163.149315,0.00017997,2]
[394099431,1763279443913,-151.0,0.00017997,2]
[394099432,1763279443922,-163.149315,0.00017997,2]
[394099433,1763279443932,-151.0,0.00017997,2]
[394099434,1763279443945,-163.149315,0.00017997,2]
[394099435,1763279443955,-151.0,0.00017997,2]
[394099436,1763279443964,-163.149315,0.00017997,2]
[394099437,1763279443974,-151.0,0.00017997,2]
[394099438,1763279443983,-163.149315,0.00017997,2]
[394099439,1763279443992,-151.0,0.00017997,2]
[394099440,1763279444002,-163.149315,0.00017997,2]
[394099441,1763279444012,-151.0,0.00017997,2]
[394099442,1763279444021,-151.0,0.00017997,2]
[394099443,1763279444031,-151.0,0.00017997,2]
[394099444,1763279444040,-151.0,0.00017997,2]
[394099445,1763279444050,-151.0,0.00017997,2]
[394099446,1763279444060,-151.0,0.00017997,2]
[394099447,1763279444073,-151.0,0.00017997,2]
[394099448,1763279444082,-151.0,0.00017997,2]
[394099449,1763279444092,-151.0,0.00017997,2]
[394099450,1763279444101,-151.0,0.00017997,2]
[394099451,1763279444111,-151.0,0.00017997,2]
[394099452,1763279444120,-203.848953,0.00017997,2]
[394099453,1763279444130,-279.127415,0.00017997,2]
[394099454,1763279444141,-279.127415,0.00017997,2]
[394099455,1763279444151,-249.696658,0.00017997,2]
[394099456,1763279444161,-279.127415,0.00017997,2]
[394099457,1763279444171,-249.696658,0.00017997,2]
[394099458,1763279444180,-249.696658,0.00017997,2]
[394099459,1763279444191,-249.696658,0.00017997,2]
[394099460,1763279444202,-249.696658,0.00017997,2]
[394099461,1763279444212,-249.696658,0.00017997,2]
[394099462,1763279444223,-249.696658,0.00017997,2]
[394099463,1763279444233,-249.696658,0.00017997,2]
[394099464,1763279444242,-249.696658,0.00017997,2]
[394099465,1763279444252,-249.696658,0.00017997,2]
[394099466,1763279444262,-249.696658,0.00017997,2]
[394099467,1763279444271,-249.696658,0.00017997,2]
[394099468,1763279444281,-151.0,0.00017997,2]
[394099469,1763279444290,-151.0,0.00017997,2]
[394099470,1763279444299,-151.0,0.00017997,2]
[394099471,1763279444309,-151.0,0.00017997,2]
[394099472,1763279444318,-151.0,0.00017997,2]
[394099473,1763279444328,-151.0,0.00017997,2]
[394099474,1763279444338,-151.0,0.00017997,2]
[394099475,1763279444347,-165.401043,0.00017997,2]
[394099476,1763279444356,-151.0,0.00017997,2]
[394099477,1763279444366,-151.0,0.00017997,2]
[394099478,1763279444375,-151.0,0.00017997,2]
[394099479,1763279444385,-157.507306,0.00017997,2]
[394099480,1763279444395,-151.0,0.00017997,2]
[394099481,1763279444404,-151.0,0.00017997,2]
[394099482,1763279444413,-151.0,0.00017997,2]
[394099483,1763279444423,-151.0,0.00017997,2]
[394099484,1763279444432,-151.0,0.00017997,2]
[394099485,1763279444442,-151.0,0.00017997,2]
[394099486,1763279444456,-151.0,0.00017997,2]
[394099487,1763279444467,-151.0,0.00017997,2]
[394099488,1763279444476,-151.0,0.00017997,2]
[394099489,1763279444486,-151.0,0.00017997,2]
[394099490,1763279444496,-151.0,0.00017997,2]
[394099491,1763279444506,-151.0,0.00017997,2]
[394099492,1763279444515,-151.0,0.00017997,2]
[394099493,1763279444525,-151.0,0.00017997,2]
[394099494,1763279444535,-151.0,0.00017997,2]
[394099495,1763279444545,-3145.2229689,0.00017997,2]
[394099496,1763279444555,-151.0,0.00017997,2]
[394099497,1763279444564,-151.0,0.00017997,2]
[394099498,1763279444573,-151.0,0.00017997,2]
[394099499,1763279444583,-151.0,0.00017997,2]
[394099500,1763279444593,-151.0,0.00017997,2]
[394099501,1763279444602,-151.0,0.00017997,2]
[394099502,1763279444611,-151.0,0.00017997,2]
[394099503,1763279444620,-301.95128,0.00017997,2]
[394099504,1763279444630,-250.382758,0.00017997,2]
[394099505,1763279444640,-151.0,0.00017997,2]
[394099506,1763279444650,-151.0,0.00017997,2]
[394099507,1763279444660,-151.0,0.00017997,2]
[394099508,1763279444671,-280.368315,0.00017997,2]
[394099509,1763279444681,-153.877264,0.00017997,2]
[394099510,1763279444691,-160.155288,0.00017997,2]
[394099511,1763279444702,-160.155288,0.00017997,2]
[394099512,1763279444712,-160.155288,0.00017997,2]
[394099513,1763279444722,-160.155288,0.00017997,2]
[394099514,1763279444732,-160.155288,0.00017997,2]
[394099515,1763279444742,-151.0,0.00017997,2]
[394099516,1763279444751,-160.155288,0.00017997,2]
[394099517,1763279444762,-151.0,0.00017997,2]
[394099518,1763279444771,-151.0,0.00017997,2]
[394099519,1763279444780,-160.155288,0.00017997,2]
[394099520,1763279444790,-160.155288,0.00017997,2]
[394099521,1763279444799,-151.0,0.00017997,2]
[394099522,1763279444810,-160.155288,0.00017997,2]
[394099523,1763279444820,-198.451936,0.00017997,2]
[394099524,1763279444830,-160.155288,0.00017997,2]
[394099525,1763279444843,-160.155288,0.00017997,2]
[394099526,1763279444853,-160.155288,0.00017997,2]
[394099527,1763279444863,-151.0,0.00017997,2]
[394099528,1763279444873,-151.0,0.00017997,2]
[394099529,1763279444882,-151.0,0.00017997,2]
[394099530,1763279444892,-151.0,0.00017997,2]
[394099531,1763279444902,-151.0,0.00017997,2]
[394099532,1763279444911,-151.0,0.00017997,2]
[394099533,1763279444921,-151.0,0.00017997,2]
[394099534,1763279444931,-151.0,0.00017997,2]
[394099535,1763279444940,-151.0,0.00017997,2]
[394099536,1763279444950,-158.393141,0.00017997,2]
[394099537,1763279444960,-151.0,0.00017997,2]
[394099538,1763279444970,-151.0,0.00017997,2]
[394099539,1763279444980,-151.0,0.00017997,2]
[394099540,1763279444990,-151.0,0.00017997,2]
[394099541,1763279445000,-151.0,0.00017997,2]